fUSD/lending_fUSD_20241110
["ID","MTS","AMOUNT","RATE_DAILY","PERIOD"]
[341914812,1731281436743,-500.0,0.00014848,2]
[341914813,1731281436752,-500.0,0.00014848,2]
[341914814,1731281436763,-500.0,0.00014848,2]
[341914815,1731281436775,-500.0,0.00014848,2]
[341914816,1731281436784,-641.08794113,0.00014848,2]
[341914817,1731281436793,-554.33909904,0.00014848,2]
[341914818,1731281436802,-500.0,0.00014848,2]
[341914819,1731281436813,-500.0,0.00014848,2]
[341914820,1731281436823,-184.86959879,0.00014848,2]
[341914821,1731281436832,-500.0,0.00014848,2]
[341914822,1731281436842,-535.58534845,0.00014848,2]
[341914823,1731281436851,-500.0,0.00014848,2]
[341914824,1731281436861,-500.0,0.00014848,2]
[341914825,1731281436872,-500.0,0.00014848,2]
[341914826,1731281436881,-500.0,0.00014848,2]
[341914827,1731281436890,-336.96374537,0.00014848,2]
[341914828,1731281436899,-616.84240781,0.00014848,2]
[341914829,1731281436908,-500.0,0.00014848,2]
[341914830,1731281436920,-505.74809813,0.00014848,2]
[341914831,1731281436933,-500.0,0.00014848,2]
[341914832,1731281436942,-425.51734583,0.00014848,2]
[341914833,1731281436952,-500.0,0.00014848,2]
[341914834,1731281436961,-500.0,0.00014848,2]
[341914835,1731281436970,-500.0,0.00014848,2]
[341914836,1731281436979,-500.0,0.00014848,2]
[341914837,1731281436989,-500.0,0.00014848,2]
[341914838,1731281436998,-500.0,0.00014848,2]
[341914839,1731281437007,-500.0,0.00014848,2]
[341914840,1731281437015,-500.0,0.00014848,2]
[341914841,1731281437025,-500.0,0.00014848,2]
[341914842,1731281437034,-500.0,0.00014848,2]
[341914843,1731281437043,-500.0,0.00014848,2]
[341914844,1731281437052,-500.0,0.00014848,2]
[341914845,1731281437061,-500.0,0.00014848,2]
[341914846,1731281437069,-500.0,0.00014848,2]
[341914847,1731281437078,-500.0,0.00014848,2]
[341914848,1731281437088,-500.0,0.00014848,2]
[341914849,1731281437100,-500.0,0.00014848,2]
[341914850,1731281437110,-500.0,0.00014848,2]
[341914851,1731281437119,-1349.9,0.00014848,2]
[341914852,1731281437131,-926.39,0.00014848,2]
[341914853,1731281437140,-2462.27,0.00014848,2]
[341914854,1731281437149,-2072.21,0.00014848,2]
[341914855,1731281437158,-880.84,0.00014848,2]
[341914856,1731281437168,-500.0,0.00014848,2]
[341914857,1731281437177,-500.0,0.00014848,2]
[341914858,1731281437186,-664.51,0.00014848,2]
[341914859,1731281437196,-500.0,0.00014848,2]
[341914860,1731281437206,-1463.86,0.00014848,2]
[341914861,1731281437215,-635.83,0.00014848,2]
[341914862,1731281437224,-500.0,0.00014848,2]
[341914863,1731281437232,-500.0,0.00014848,2]
[341914864,1731281437242,-150.0,0.00014848,2]
[341914865,1731281437251,-150.0,0.00014849,2]
[341914866,1731281437260,-500.0,0.00014849,2]
[341914867,1731281437269,-581.22,0.00014849,2]
[341914868,1731281437278,-500.0,0.00014849,2]
[341914869,1731281437287,-2344.23,0.00014849,2]
[341914870,1731281437296,-33393.02952164,0.0001485,2]
[341914871,1731281437305,-150.0,0.00014852,2]
[341914872,1731281437315,-150.0,0.00014854,2]
[341914873,1731281437324,-150.0,0.00014859,2]
[341914874,1731281437333,-150.0,0.00014866,2]
[341914875,1731281437342,-150.0,0.00014872,2]
[341914876,1731281437352,-150.0,0.00014872,2]
[341914877,1731281437362,-150.0,0.00014873,2]
[341914878,1731281437371,-150.0,0.00014875,2]
[341914879,1731281437380,-150.0,0.0001488,2]
[341914880,1731281437389,-150.0,0.00014883,2]
[341914881,1731281437399,-150.0,0.00014883,2]
[341914882,1731281437410,-150.0,0.00014895,2]
[341914883,1731281437419,-200.0,0.00014897,2]
[341914884,1731281437428,-603.67,0.00014898,2]
[341914885,1731281437437,-826.68,0.00014898,2]
[341914886,1731281437446,-579.51,0.00014898,2]
[341914887,1731281437455,-849.69,0.00014898,2]
[341914888,1731281437465,-500.0,0.00014898,2]
[341914889,1731281437474,-500.0,0.00014898,2]
[341914890,1731281437483,-500.0,0.00014898,2]
[341914891,1731281437492,-500.0,0.00014898,2]
[341914892,1731281437501,-500.0,0.00014898,2]
[341914893,1731281437510,-500.0,0.00014898,2]
[341914894,1731281437519,-500.0,0.00014898,2]
[341914895,1731281437528,-800.38,0.00014898,2]
[341914896,1731281437537,-1191.29,0.00014898,2]
[341914897,1731281437546,-2930.97,0.00014898,2]
[341914898,1731281437555,-150.0,0.00014898,2]
[341914899,1731281437564,-301.71,0.00014898,2]
[341914900,1731281437573,-500.0,0.00014898,2]
[341914901,1731281437582,-270.49,0.00014898,2]
[341914902,1731281437591,-500.0,0.00014898,2]
[341914903,1731281437601,-500.0,0.00014898,2]
[341914904,1731281437610,-1592.99,0.00014898,2]
[341914905,1731281437619,-281.5849244,0.00014898,2]
[341914906,1731281437629,-500.0,0.00014898,2]
[341914907,1731281437638,-500.0,0.00014898,2]
[341914908,1731281437647,-1356.96,0.00014898,2]
[341914909,1731281437657,-500.0,0.00014898,2]
[341914910,1731281437666,-500.0,0.00014898,2]
[341914911,1731281437675,-500.0,0.00014898,2]
[341914912,1731281437684,-195.51108701,0.00014899,2]
[341914913,1731281437694,-500.0,0.00014899,2]
[341914914,1731281437703,-500.0,0.00014899,2]
[341914915,1731281437712,-732.78,0.00014899,2]
[341914916,1731281437721,-500.0,0.00014899,2]
[341914917,1731281437730,-500.0,0.00014899,2]
[341914918,1731281437739,-827.44,0.00014899,2]
[341914919,1731281437748,-500.0,0.00014899,2]
[341914920,1731281437757,-500.0,0.00014899,2]
[341914921,1731281437770,-1193.57,0.00014899,2]
[341914922,1731281437780,-500.0,0.00014899,2]
[341914923,1731281437790,-659.37,0.00014899,2]
[341914924,1731281437801,-500.0,0.00014899,2]
[341914925,1731281437811,-607.76901682,0.00014899,2]
[341914926,1731281437820,-500.0,0.00014899,2]
[341914927,1731281437829,-1349.9,0.00014899,2]
[341914928,1731281437840,-833.39,0.00014899,2]
[341914929,1731281437849,-598.06,0.00014899,2]
[341914930,1731281437858,-500.0,0.00014899,2]
[341914931,1731281437867,-500.0,0.00014899,2]
[341914932,1731281437878,-834.8,0.00014899,2]
[341914933,1731281437887,-500.0,0.00014899,2]
[341914934,1731281437896,-780.03,0.00014899,2]
[341914935,1731281437905,-500.0,0.00014899,2]
[341914936,1731281437914,-236.48725381,0.00014899,2]
[341914937,1731281437924,-500.0,0.00014899,2]
[341914938,1731281437935,-595.35008787,0.00014899,2]
[341914939,1731281437943,-500.0,0.00014899,2]
[341914940,1731281437952,-500.0,0.00014899,2]
[341914941,1731281437961,-500.0,0.00014899,2]
[341914942,1731281437970,-624.4,0.00014899,2]
[341914943,1731281437979,-926.39,0.00014899,2]
[341914944,1731281437988,-509.07,0.00014899,2]
[341914945,1731281437998,-557.14,0.00014899,2]
[341914946,1731281438007,-500.0,0.00014899,2]
[341914947,1731281438016,-500.0,0.00014899,2]
[341914948,1731281438027,-500.0,0.00014899,2]
[341914949,1731281438036,-500.0,0.00014899,2]
[341914950,1731281438045,-500.0,0.00014899,2]
[341914951,1731281438055,-552.53,0.00014899,2]
[341914952,1731281438064,-2462.27,0.00014899,2]
[341914953,1731281438073,-500.0,0.00014899,2]
[341914954,1731281438082,-450.86363387,0.00014899,2]
[341914955,1731281438091,-2072.21,0.00014899,2]
[341914956,1731281438100,-745.97,0.00014899,2]
[341914957,1731281438110,-500.0,0.00014899,2]
[341914958,1731281438119,-500.0,0.00014899,2]
[341914959,1731281438128,-880.84,0.00014899,2]
[341914960,1731281438138,-500.0,0.00014899,2]
[341914961,1731281438147,-500.0,0.00014899,2]
[341914962,1731281438156,-500.0,0.00014899,2]
[341914963,1731281438165,-500.0,0.00014899,2]
[341914964,1731281438174,-500.0,0.00014899,2]
[341914965,1731281438183,-500.0,0.00014899,2]
[341914966,1731281438192,-500.0,0.00014899,2]
[341914967,1731281438201,-1021.63,0.00014899,2]
[341914968,1731281438211,-636.12222457,0.00014899,2]
[341914969,1731281438220,-500.0,0.00014899,2]
[341914970,1731281438229,-500.0,0.00014899,2]
[341914971,1731281438239,-940.57,0.00014899,2]
[341914972,1731281438248,-500.0,0.00014899,2]
[341914973,1731281438257,-380.80568264,0.00014899,2]
[341914974,1731281438266,-500.0,0.00014899,2]
[341914975,1731281438276,-2289.74,0.00014899,2]
[341914976,1731281438285,-506.21674827,0.00014899,2]
[341914977,1731281438295,-500.0,0.00014899,2]
[341914978,1731281438304,-500.0,0.00014899,2]
[341914979,1731281438313,-164.66605549,0.00014899,2]
[341914980,1731281438322,-664.51,0.00014899,2]
[341914981,1731281438331,-422.84415788,0.00014899,2]
[341914982,1731281438340,-500.0,0.00014899,2]
[341914983,1731281438349,-500.0,0.00014899,2]
[341914985,1731281438358,-500.0,0.00014899,2]
[341914987,1731281438367,-500.0,0.00014899,2]
[341914988,1731281438378,-500.0,0.00014899,2]
[341914989,1731281438387,-500.0,0.00014899,2]
[341914990,1731281438396,-500.0,0.00014899,2]
[341914991,1731281438405,-1277.64,0.00014899,2]
[341914992,1731281438414,-500.0,0.00014899,2]
[341914993,1731281438424,-500.0,0.00014899,2]
[341914994,1731281438434,-500.0,0.00014899,2]
[341914995,1731281438443,-500.0,0.00014899,2]
[341914996,1731281438453,-500.0,0.00014899,2]
[341914997,1731281438462,-500.0,0.00014899,2]
[341914998,1731281438471,-500.0,0.00014899,2]
[341914999,1731281438482,-1463.86,0.00014899,2]
[341915000,1731281438492,-500.0,0.00014899,2]
[341915001,1731281438501,-851.03,0.00014899,2]
[341915002,1731281438510,-500.0,0.00014899,2]
[341915003,1731281438519,-635.83,0.00014899,2]
[341915004,1731281438528,-500.0,0.00014899,2]
[341915005,1731281438537,-500.0,0.00014899,2]
[341915006,1731281438547,-500.0,0.00014899,2]
[341915007,1731281438556,-586.66,0.00014899,2]
[341915008,1731281438566,-500.0,0.00014899,2]
[341915009,1731281438575,-500.0,0.00014899,2]
[341915010,1731281438584,-500.0,0.00014899,2]
[341915011,1731281438592,-500.0,0.00014899,2]
[341915012,1731281438601,-500.0,0.00014899,2]
[341915013,1731281438610,-500.0,0.00014899,2]
[341915014,1731281438619,-186.2239891,0.00014899,2]
[341915015,1731281438628,-182.09011709,0.00014899,2]
[341915016,1731281438637,-500.0,0.00014899,2]
[341915017,1731281438646,-1894.74,0.00014899,2]
[341915018,1731281438655,-658.64,0.00014899,2]
[341915019,1731281438664,-500.0,0.00014899,2]
[341915020,1731281438673,-500.0,0.00014899,2]
[341915021,1731281438682,-500.0,0.00014899,2]
[341915022,1731281438690,-500.0,0.00014899,2]
[341915023,1731281438700,-535.75,0.00014899,2]
[341915024,1731281438708,-500.0,0.00014899,2]
[341915025,1731281438717,-500.0,0.00014899,2]
[341915026,1731281438726,-500.0,0.00014899,2]
[341915027,1731281438735,-2002.39,0.00014899,2]
[341915028,1731281438744,-500.0,0.00014899,2]
[341915029,1731281438753,-500.0,0.00014899,2]
[341915030,1731281438764,-500.0,0.00014899,2]
[341915031,1731281438775,-500.0,0.00014899,2]
[341915032,1731281438784,-500.0,0.00014899,2]
[341915033,1731281438793,-500.0,0.00014899,2]
[341915034,1731281438802,-500.0,0.00014899,2]
[341915035,1731281438814,-500.0,0.00014899,2]
[341915036,1731281438823,-500.0,0.00014899,2]
[341915037,1731281438831,-500.0,0.00014899,2]
[341915038,1731281438841,-500.0,0.00014899,2]
[341915039,1731281438851,-500.0,0.00014899,2]
[341915040,1731281438860,-802.68,0.00014899,2]
[341915041,1731281438869,-500.0,0.00014899,2]
[341915042,1731281438882,-500.0,0.00014899,2]
[341915043,1731281438891,-547.5,0.00014899,2]
[341915044,1731281438900,-500.0,0.00014899,2]
[341915045,1731281438909,-500.0,0.00014899,2]
[341915046,1731281438918,-500.0,0.00014899,2]
[341915047,1731281438927,-358.43084746,0.00014899,2]
[341915048,1731281438936,-500.0,0.00014899,2]
[341915049,1731281438945,-500.0,0.00014899,2]
[341915050,1731281438954,-500.0,0.00014899,2]
[341915051,1731281438963,-477.750586,0.00014899,2]
[341915052,1731281438973,-500.0,0.00014899,2]
[341915053,1731281438982,-500.0,0.00014899,2]
[341915054,1731281438991,-500.0,0.00014899,2]
[341915055,1731281439001,-150.0,0.00014899,2]
[341915056,1731281439010,-500.0,0.00014899,2]
[341915057,1731281439019,-500.0,0.00014899,2]
[341915058,1731281439029,-527.63,0.00014899,2]
[341915059,1731281439038,-500.0,0.00014899,2]
[341915060,1731281439047,-310.528289,0.00014899,2]
[341915061,1731281439057,-582.06,0.00014899,2]
[341915062,1731281439066,-500.0,0.00014899,2]
[341915063,1731281439076,-500.0,0.00014899,2]
[341915064,1731281439085,-500.0,0.00014899,2]
[341915065,1731281439095,-553.45,0.00014899,2]
[341915066,1731281439104,-500.0,0.00014899,2]
[341915067,1731281439113,-384.94815259,0.00014899,2]
[341915068,1731281439125,-491.7633536,0.00014899,2]
[341915069,1731281439134,-310.528289,0.000149,2]
[341915070,1731281439143,-384.94815259,0.000149,2]
[341915071,1731281439152,-491.76335359,0.000149,2]
[341915072,1731281439161,-182.09011709,0.000149,2]
[341915073,1731281439173,-16135.75423213,0.000149,2]
[341915074,1731281439183,-203.504344,0.000149,2]
[341915075,1731281439192,-5224.08500403,0.000149,2]
[341915076,1731281439202,-873.43267949,0.000149,2]
[341915077,1731281439211,-310.528289,0.000149,2]
[341915078,1731281439222,-502.33647147,0.000149,2]
[341915079,1731281439232,-250.0,0.000149,2]
[341915080,1731281439242,-373.5,0.000149,2]
[341915081,1731281439252,-384.94815259,0.000149,2]
[341915082,1731281439261,-491.76335359,0.000149,2]
[341915083,1731281439270,-150.0,0.00014901,2]
[341915084,1731281439279,-381.72,0.00014902,2]
[341915085,1731281439288,-150.0,0.00014903,2]
[341915086,1731281439297,-150.0,0.00014905,2]
[341915087,1731281439307,-150.0,0.00014905,2]
[341915088,1731281439316,-150.0,0.00014906,2]
[341915089,1731281439325,-150.0,0.00014907,2]
[341915090,1731281439334,-150.0,0.00014908,2]
[341915091,1731281439343,-150.0,0.0001491,2]
[341915092,1731281439352,-150.0,0.00014915,2]
[341915093,1731281439362,-150.0,0.00014917,2]
[341915094,1731281439371,-150.0,0.00014931,2]
[341915095,1731281439381,-150.0,0.00014938,2]
[341915096,1731281439390,-150.0,0.00014941,2]
[341915097,1731281439399,-150.0,0.00014944,2]
[341915098,1731281439409,-150.0,0.00014945,2]
[341915099,1731281439418,-150.0,0.00014947,2]
[341915100,1731281439427,-150.0,0.00014948,2]
[341915101,1731281439436,-150.0,0.0001495,2]
[341915102,1731281439446,-150.0,0.00014953,2]
[341915103,1731281439454,-515.21427596,0.00014954,2]
[341915104,1731281439463,-560.00042829,0.00014954,2]
[341915105,1731281439472,-385.24943163,0.00014954,2]
[341915106,1731281439481,-500.0,0.00014954,2]
[341915107,1731281439637,-500.0,0.00014954,2]
[341915108,1731281439667,-500.0,0.00014954,2]
[341915109,1731281439677,-500.0,0.00014954,2]
[341915110,1731281439686,-500.0,0.00014954,2]
[341915111,1731281439695,-500.0,0.00014954,2]
[341915112,1731281439704,-500.0,0.00014954,2]
[341915113,1731281439713,-500.0,0.00014954,2]
[341915114,1731281439722,-500.0,0.00014954,2]
[341915115,1731281439731,-500.0,0.00014954,2]
[341915116,1731281439740,-500.0,0.00014954,2]
[341915117,1731281439749,-500.0,0.00014954,2]
[341915118,1731281439758,-500.0,0.00014954,2]
[341915119,1731281439772,-150.0,0.00014954,2]
[341915120,1731281439781,-921.0,0.00014954,2]
[341915121,1731281439790,-2910.0,0.00014954,2]
[341915122,1731281439799,-814.0,0.00014954,2]
[341915123,1731281439809,-1259.0,0.00014954,2]
[341915124,1731281439818,-5927.0,0.00014954,2]
[341915125,1731281439827,-481.913,0.00014954,2]
[341915126,1731281439838,-1254.0,0.00014954,2]
[341915127,1731281439847,-150.0,0.00014954,2]
[341915128,1731281439856,-631.0,0.00014954,2]
[341915129,1731281439866,-150.0,0.00014956,2]
[341915130,1731281439875,-150.0,0.00014958,2]
[341915131,1731281439886,-150.0,0.00014958,2]
[341915132,1731281439895,-1000.0,0.0001496,2]
[341915133,1731281439905,-150.0,0.00014967,2]
[341915134,1731281439914,-150.0,0.00014967,2]
[341915135,1731281439924,-500.0,0.00014973,2]
[341915136,1731281439933,-500.0,0.00014973,2]
[341915137,1731281439943,-500.0,0.00014973,2]
[341915138,1731281439952,-500.0,0.00014973,2]
[341915139,1731281439962,-160.41954809,0.00014973,2]
[341915140,1731281439971,-500.0,0.00014973,2]
[341915141,1731281439980,-500.0,0.00014973,2]
[341915142,1731281439990,-150.0,0.00014973,2]
[341915143,1731281440000,-150.0,0.00014973,2]
[341915144,1731281440010,-150.0,0.00014977,2]
[341915145,1731281440019,-150.0,0.00014978,2]
[341915146,1731281440029,-150.0,0.00014979,2]
[341915147,1731281440039,-150.0,0.00014979,2]
[341915148,1731281440049,-500.0,0.00014981,2]
[341915149,1731281440059,-150.0,0.00014984,2]
[341915150,1731281440068,-425.9282555,0.00014987,2]
[341915151,1731281440078,-170.2286238,0.00014987,2]
[341915152,1731281440087,-537.45901047,0.00014987,2]
[341915153,1731281440097,-4026.5828075,0.00014987,2]
[341915154,1731281440107,-150.0,0.00014987,2]
[341915155,1731281440116,-150.0,0.00014987,2]
[341915156,1731281440127,-150.0,0.00014988,2]
[341915157,1731281440137,-150.0,0.00014988,2]
[341915158,1731281440147,-176.32943313,0.00014988,2]
[341915159,1731281440157,-176.32943313,0.00014989,2]
[341915160,1731281440166,-150.0,0.00014989,2]
[341915161,1731281440176,-381.9826748,0.0001499,2]
[341915162,1731281440185,-338.037094,0.0001499,2]
[341915163,1731281440194,-294.0915132,0.0001499,2]
[341915164,1731281440203,-250.1459324,0.0001499,2]
[341915165,1731281440213,-170.2286238,0.0001499,2]
[341915166,1731281440222,-170.2286238,0.0001499,2]
[341915167,1731281440232,-170.2286238,0.0001499,2]
[341915168,1731281440242,-170.2286238,0.0001499,2]
[341915169,1731281440252,-3614.1591198,0.0001499,2]
[341915170,1731281440261,-3201.7354322,0.0001499,2]
[341915171,1731281440271,-2789.3117445,0.0001499,2]
[341915172,1731281440280,-2376.8880569,0.0001499,2]
[341915173,1731281440289,-500.0,0.00014993,2]
[341915174,1731281440299,-500.0,0.00014993,2]
[341915175,1731281440308,-500.0,0.00014993,2]
[341915176,1731281440317,-500.0,0.00014993,2]
[341915178,1731281440326,-500.0,0.00014993,2]
[341915179,1731281440335,-500.0,0.00014993,2]
[341915181,1731281440344,-500.0,0.00014993,2]
[341915182,1731281440354,-500.0,0.00014993,2]
[341915183,1731281440363,-500.0,0.00014993,2]
[341915184,1731281440372,-500.0,0.00014993,2]
[341915185,1731281440383,-500.0,0.00014993,2]
[341915186,1731281440392,-500.0,0.00014993,2]
[341915187,1731281440401,-569.87505165,0.00014993,2]
[341915188,1731281440411,-640.05023257,0.00014993,2]
[341915189,1731281440420,-500.0,0.00014993,2]
[341915190,1731281440429,-500.0,0.00014993,2]
[341915191,1731281440439,-500.0,0.00014993,2]
[341915192,1731281440448,-500.0,0.00014993,2]
[341915193,1731281440457,-500.0,0.00014993,2]
[341915194,1731281440466,-500.0,0.00014993,2]
[341915195,1731281440475,-500.0,0.00014993,2]
[341915196,1731281440485,-500.0,0.00014993,2]
[341915197,1731281440494,-539.56,0.00014993,2]
[341915198,1731281440503,-1349.9,0.00014993,2]
[341915199,1731281440513,-926.39,0.00014993,2]
[341915200,1731281440523,-2462.27,0.00014993,2]
[341915201,1731281440532,-2072.21,0.00014993,2]
[341915202,1731281440541,-880.84,0.00014993,2]
[341915203,1731281440550,-500.0,0.00014993,2]
[341915204,1731281440560,-664.51,0.00014993,2]
[341915205,1731281440569,-371.61913985,0.00014993,2]
[341915206,1731281440578,-1463.86,0.00014993,2]
[341915207,1731281440588,-635.83,0.00014993,2]
[341915208,1731281440597,-500.0,0.00014993,2]
[341915210,1731281440607,-150.0,0.00014995,2]
[341915212,1731281440616,-500.0,0.00014995,2]
[341915214,1731281440625,-500.0,0.00014995,2]
[341915215,1731281440638,-2344.23,0.00014995,2]
[341915216,1731281440647,-836.95,0.00014996,2]
[341915217,1731281440656,-500.0,0.00014996,2]
[341915218,1731281440665,-500.0,0.00014996,2]
[341915219,1731281440674,-2246.58,0.00014996,2]
[341915220,1731281440682,-2236.88,0.00014996,2]
[341915221,1731281440691,-2630.28,0.00014996,2]
[341915222,1731281440700,-708.8,0.00014996,2]
[341915223,1731281440709,-500.0,0.00014996,2]
[341915224,1731281440718,-500.0,0.00014996,2]
[341915225,1731281440727,-2821.67,0.00014996,2]
[341915226,1731281440737,-500.0,0.00014996,2]
[341915227,1731281440746,-500.0,0.00014996,2]
[341915228,1731281440756,-819.76,0.00014996,2]
[341915229,1731281440769,-971.69,0.00014996,2]
[341915230,1731281440778,-1065.61,0.00014996,2]
[341915231,1731281440788,-500.0,0.00014996,2]
[341915232,1731281440798,-500.0,0.00014996,2]
[341915233,1731281440808,-500.0,0.00014996,2]
[341915234,1731281440817,-500.0,0.00014996,2]
[341915235,1731281440827,-1250.89,0.00014996,2]
[341915236,1731281440836,-186.77925988,0.00014996,2]
[341915237,1731281440848,-2152.06,0.00014996,2]
[341915238,1731281440858,-3059.53,0.00014996,2]
[341915239,1731281440867,-2104.62,0.00014996,2]
[341915240,1731281440878,-603.67,0.00014996,2]
[341915241,1731281440887,-2725.56,0.00014996,2]
[341915242,1731281440896,-500.0,0.00014996,2]
[341915243,1731281440905,-826.68,0.00014996,2]
[341915244,1731281440915,-1404.35,0.00014996,2]
[341915245,1731281440924,-9375.0,0.00014996,2]
[341915246,1731281440934,-579.51,0.00014996,2]
[341915247,1731281440943,-2549.76,0.00014996,2]
[341915248,1731281440953,-500.0,0.00014996,2]
[341915249,1731281440963,-849.69,0.00014996,2]
[341915250,1731281440973,-500.0,0.00014996,2]
[341915251,1731281440983,-500.0,0.00014996,2]
[341915252,1731281440994,-719.8,0.00014996,2]
[341915253,1731281441003,-500.0,0.00014996,2]
[341915254,1731281441013,-500.0,0.00014996,2]
[341915255,1731281441023,-1000.0,0.00014996,2]
[341915256,1731281441033,-500.0,0.00014996,2]
[341915257,1731281441042,-500.0,0.00014996,2]
[341915258,1731281441051,-500.0,0.00014996,2]
[341915259,1731281441061,-500.0,0.00014996,2]
[341915260,1731281441070,-800.38,0.00014996,2]
[341915261,1731281441080,-500.0,0.00014996,2]
[341915262,1731281441090,-2930.97,0.00014996,2]
[341915263,1731281441100,-1191.29,0.00014996,2]
[341915264,1731281441110,-150.0,0.00014996,2]
[341915265,1731281441120,-500.0,0.00014996,2]
[341915266,1731281441131,-995.6,0.00014996,2]
[341915267,1731281441141,-500.0,0.00014996,2]
[341915268,1731281441151,-500.0,0.00014996,2]
[341915269,1731281441161,-1592.99,0.00014996,2]
[341915270,1731281441170,-500.0,0.00014996,2]
[341915271,1731281441179,-500.0,0.00014996,2]
[341915272,1731281441188,-1356.96,0.00014996,2]
[341915273,1731281441198,-1127.11,0.00014996,2]
[341915274,1731281441208,-500.0,0.00014996,2]
[341915275,1731281441217,-1349.9,0.00014997,2]
[341915276,1731281441227,-926.39,0.00014997,2]
[341915277,1731281441236,-500.0,0.00014997,2]
[341915278,1731281441246,-2462.27,0.00014997,2]
[341915279,1731281441255,-500.0,0.00014997,2]
[341915280,1731281441264,-500.0,0.00014997,2]
[341915281,1731281441274,-2072.21,0.00014997,2]
[341915282,1731281441284,-500.0,0.00014997,2]
[341915283,1731281441294,-880.84,0.00014997,2]
[341915284,1731281441303,-500.0,0.00014997,2]
[341915285,1731281441312,-500.0,0.00014997,2]
[341915286,1731281441323,-836.95,0.00014997,2]
[341915287,1731281441332,-500.0,0.00014997,2]
[341915288,1731281441342,-500.0,0.00014997,2]
[341915289,1731281441351,-500.0,0.00014997,2]
[341915290,1731281441361,-500.0,0.00014997,2]
[341915291,1731281441371,-2246.58,0.00014997,2]
[341915292,1731281441383,-500.0,0.00014997,2]
[341915293,1731281441393,-2236.88,0.00014997,2]
[341915294,1731281441403,-500.0,0.00014997,2]
[341915295,1731281441413,-2630.28,0.00014997,2]
[341915296,1731281441422,-500.0,0.00014997,2]
[341915297,1731281441432,-500.0,0.00014997,2]
[341915298,1731281441441,-664.51,0.00014997,2]
[341915299,1731281441451,-708.8,0.00014997,2]
[341915300,1731281441460,-500.0,0.00014997,2]
[341915301,1731281441470,-500.0,0.00014997,2]
[341915302,1731281441479,-2821.67,0.00014997,2]
[341915303,1731281441489,-500.0,0.00014997,2]
[341915304,1731281441498,-500.0,0.00014997,2]
[341915305,1731281441508,-819.76,0.00014997,2]
[341915306,1731281441517,-971.69,0.00014997,2]
[341915307,1731281441526,-1065.61,0.00014997,2]
[341915308,1731281441535,-500.0,0.00014997,2]
[341915309,1731281441545,-500.0,0.00014997,2]
[341915310,1731281441555,-1463.86,0.00014997,2]
[341915311,1731281441564,-635.83,0.00014997,2]
[341915312,1731281441573,-1250.89,0.00014997,2]
[341915313,1731281441582,-500.0,0.00014997,2]
[341915314,1731281441591,-2152.06,0.00014997,2]
[341915315,1731281441600,-3059.53,0.00014997,2]
[341915316,1731281441609,-2104.62,0.00014997,2]
[341915317,1731281441618,-603.67,0.00014997,2]
[341915318,1731281441627,-603.67,0.00014997,2]